bitfinex/quotes_BTCUSD_20240718
["timestamp","ask_amount","ask_price","bid_price","bid_amount"]
[1721329890110,0.04950332,63667.0,63666.0,0.785347]
[1721329890338,0.04950332,63667.0,63666.0,1.099486]
[1721329890584,0.00835,63677.0,63676.0,0.157045]
[1721329890817,0.00835,63677.0,63676.0,0.471135]
[1721329891053,0.01218274,63677.0,63676.0,0.471135]
[1721329891298,0.00835,63677.0,63673.0,0.314103]
[1721329891519,0.00835,63677.0,63672.0,0.314107]
[1721329891520,0.006,63662.0,63661.0,0.471246]
[1721329891768,0.006,63662.0,63661.0,0.78541]
[1721329892234,0.1462,63663.0,63662.0,0.471238]
[1721329892472,0.1462,63663.0,63662.0,0.157079]
[1721329892700,0.15001345,63663.0,63662.0,0.471238]
[1721329892963,0.1462,63663.0,63662.0,0.785397]
[1721329893184,0.0796,63663.0,63662.0,0.785397]
[1721329893635,0.00380416,63663.0,63662.0,0.785397]
[1721329894147,0.001594,63667.0,63665.0,0.15707]
[1721329894398,0.471231,63663.0,63662.0,0.011]
[1721329894610,0.157077,63663.0,63662.0,0.011]
[1721329894820,0.158077,63663.0,63662.0,0.016]
[1721329895026,0.158077,63663.0,63662.0,0.011]
[1721329895027,0.157077,63663.0,63662.0,0.011]
[1721329895286,0.314145,63665.0,63662.0,0.011]
[1721329895491,0.157074,63665.0,63661.0,0.15708]
[1721329895702,0.001594,63664.0,63663.0,0.157076]
[1721329895929,0.001594,63666.0,63663.0,0.157076]
[1721329896346,0.001594,63666.0,63665.0,0.471216]
[1721329896573,0.001594,63666.0,63665.0,0.78536]
[1721329896785,0.001,63667.0,63656.0,0.314184]
[1721329896786,0.001,63667.0,63666.0,0.471208]
[1721329897024,0.001,63667.0,63666.0,0.785347]
[1721329898301,0.001594,63669.0,63668.0,0.471193]
[1721329898744,0.07876879,63669.0,63661.0,0.157081]
[1721329898977,0.314133,63668.0,63658.0,0.314174]
[1721329899192,0.158662,63667.0,63663.0,0.157076]
[1721329899396,0.157071,63666.0,63661.0,0.314161]
[1721329899605,0.001594,63665.0,63662.0,0.157079]
[1721329899816,0.001594,63665.0,63661.0,0.314163]
[1721329900025,0.158663,63666.0,63661.0,0.314163]
[1721329900262,0.001594,63666.0,63663.0,0.157075]
[1721329900475,0.158664,63666.0,63662.0,0.157079]
[1721329900687,0.157072,63665.0,63662.0,0.157079]
[1721329901110,0.001594,63664.0,63662.0,0.157079]
[1721329901330,0.158667,63665.0,63660.0,0.314165]
[1721329901568,0.157074,63664.0,63660.0,0.157084]
[1721329901776,0.001594,63663.0,63660.0,0.157084]
[1721329901980,0.158671,63663.0,63660.0,0.157084]
[1721329902213,0.001594,63663.0,63662.0,0.157079]
[1721329902424,0.157075,63664.0,63660.0,0.157083]
[1721329902638,0.158671,63663.0,63659.0,0.157085]
[1721329902869,0.157077,63663.0,63660.0,0.157084]
[1721329903089,0.001594,63662.0,63660.0,0.157084]
[1721329903306,0.001594,63663.0,63660.0,0.157084]
[1721329903534,0.001594,63663.0,63661.0,0.157081]
[1721329904862,0.001594,63664.0,63661.0,0.157081]
[1721329905072,0.001594,63664.0,63661.0,0.158081]
[1721329905739,0.00380797,63663.0,63662.0,0.157079]
[1721329906167,0.00380797,63663.0,63662.0,0.471238]
[1721329906380,0.00380797,63663.0,63661.0,0.003]
[1721329906381,0.158667,63665.0,63661.0,0.158081]
[1721329906597,0.00380244,63663.0,63661.0,0.158081]
[1721329906808,0.001594,63664.0,63661.0,0.001]
[1721329907026,0.001594,63664.0,63659.0,0.157085]
[1721329907027,0.157079,63663.0,63660.0,0.157083]
[1721329907262,0.001594,63662.0,63660.0,0.157083]
[1721329907470,0.001594,63662.0,63661.0,0.157082]
[1721329907904,0.157077,63663.0,63661.0,0.001]
[1721329908156,0.157102,63653.0,63649.0,0.15711]
[1721329908383,0.616619,63651.0,63639.0,0.0641]
[1721329908593,1.245045,63651.0,63640.0,0.0012]
[1721329908802,1.245045,63651.0,63639.0,0.158335]
[1721329909015,0.930832,63651.0,63641.0,0.314261]
[1721329909240,0.930832,63651.0,63642.0,0.158328]
[1721329909477,0.930832,63651.0,63643.0,0.0012]
[1721329909693,0.930832,63651.0,63644.0,0.157122]
[1721329910143,0.930832,63651.0,63646.0,0.157117]
[1721329910144,0.471319,63651.0,63646.0,0.157117]
[1721329910582,0.476319,63651.0,63650.0,0.001913]
[1721329911010,0.476319,63651.0,63650.0,0.159022]
[1721329911011,0.005,63651.0,63650.0,0.159022]
[1721329911229,0.005,63651.0,63650.0,0.792458]
[1721329911230,0.006,63651.0,63650.0,0.792458]
[1721329911661,0.005,63651.0,63650.0,0.159022]
[1721329911912,0.011,63651.0,63650.0,0.159022]
[1721329913183,0.011,63651.0,63650.0,0.001913]
[1721329913398,0.796532,63651.0,63650.0,0.001913]
[1721329913821,0.168106,63651.0,63650.0,0.001913]
[1721329914216,0.168106,63651.0,63650.0,0.47324]
[1721329914217,0.011,63651.0,63650.0,0.47324]
[1721329914367,0.011,63651.0,63650.0,0.787458]
[1721329914842,0.011,63651.0,63650.0,0.47324]
[1721329915720,0.011,63651.0,63650.0,0.001913]
[1721329916084,0.48610168,63651.0,63650.0,0.001913]
[1721329916428,0.17188868,63651.0,63650.0,0.001913]
[1721329916632,0.01478268,63651.0,63650.0,0.47324]
[1721329917022,0.011,63651.0,63650.0,0.47324]
[1721329917228,0.01498703,63651.0,63650.0,0.47324]
[1721329919798,0.01498703,63651.0,63650.0,1.101676]
[1721329920000,0.011,63651.0,63650.0,1.177776]
[1721329920240,0.011,63651.0,63650.0,1.64637574]
[1721329920418,0.011,63651.0,63650.0,1.70757574]
[1721329920650,0.011,63651.0,63650.0,1.83805822]
[1721329921088,0.005,63651.0,63650.0,1.83805822]
[1721329921281,0.005,63651.0,63650.0,2.53897622]
[1721329921488,0.006,63651.0,63650.0,2.54397622]
[1721329921705,0.001594,63679.0,63669.0,0.458824]
[1721329921915,0.46304871,63683.0,63676.0,0.471135]
[1721329922119,0.001594,63682.0,63676.0,0.785225]
[1721329922365,0.300823,63685.0,63676.0,0.785225]
[1721329922366,0.001594,63684.0,63676.0,0.785225]
[1721329922573,0.001594,63684.0,63676.0,1.099315]
[1721329922778,0.04946524,63689.0,63676.0,1.099315]
[1721329922989,0.001594,63688.0,63676.0,1.32019674]
[1721329923198,0.00935,63677.0,63676.0,1.39839674]
[1721329923618,0.00835,63677.0,63676.0,1.71248674]
[1721329924068,0.00935,63677.0,63676.0,1.72048674]
[1721329924269,0.00935,63677.0,63676.0,1.40639674]
[1721329924477,0.01035,63677.0,63676.0,1.41439674]
[1721329924702,0.00935,63677.0,63676.0,1.40639674]
[1721329925121,0.01035,63677.0,63676.0,1.41439674]
[1721329925335,0.00935,63677.0,63676.0,1.72048674]
[1721329925540,0.01035,63677.0,63676.0,1.42039674]
[1721329926386,0.00935,63677.0,63676.0,1.41239674]
[1721329926567,0.00935,63677.0,63676.0,1.40639674]
[1721329926923,0.01035,63677.0,63676.0,1.34219674]
[1721329927176,0.00935,63677.0,63676.0,0.799225]
[1721329927992,0.01035,63677.0,63676.0,0.807225]
[1721329929723,0.167392,63677.0,63676.0,0.022]
[1721329929973,0.17104008,63677.0,63676.0,0.022]
[1721329930186,0.01399808,63677.0,63676.0,0.022]
[1721329930629,0.62692508,63677.0,63676.0,0.022]
[1721329930936,1.09539182,63677.0,63676.0,0.022]
[1721329931139,1.40847682,63677.0,63676.0,0.014]
[1721329931601,1.40847682,63677.0,63664.0,0.314146]
[1721329931602,0.157058,63671.0,63667.0,0.157067]
[1721329931801,0.001594,63670.0,63667.0,0.157067]
[1721329932021,0.001594,63670.0,63666.0,0.157069]
[1721329932022,0.16228272,63670.0,63666.0,0.157069]
[1721329932540,0.16228172,63670.0,63666.0,0.157069]
[1721329933244,0.16228172,63670.0,63655.0,0.0779]
[1721329933245,0.00522172,63670.0,63659.0,0.314173]
[1721329933480,0.15708,63662.0,63658.0,0.157088]
[1721329933692,0.001594,63659.0,63654.0,0.314196]
[1721329933911,0.00361379,63661.0,63658.0,0.157089]
[1721329934139,0.001594,63661.0,63658.0,0.157089]
[1721329934560,0.001594,63661.0,63659.0,0.157086]
[1721329934842,0.157077,63663.0,63659.0,0.157086]
[1721329935067,0.158661,63667.0,63663.0,0.157075]
[1721329935293,0.158661,63667.0,63658.0,0.005]
[1721329935294,0.001594,63665.0,63658.0,0.005]
[1721329935532,0.001,63661.0,63660.0,0.157084]
[1721329935735,0.001,63661.0,63660.0,0.471253]
[1721329935951,0.314156,63663.0,63655.0,0.314193]
[1721329936168,0.001594,63660.0,63657.0,0.15709]
[1721329936416,0.001594,63660.0,63656.0,0.314188]
[1721329936417,0.00361264,63659.0,63658.0,0.157088]
[1721329936615,0.00361264,63659.0,63658.0,0.471266]
[1721329936828,0.00361264,63659.0,63658.0,0.157088]
[1721329937041,0.157085,63660.0,63658.0,0.001]
[1721329937266,0.00361264,63659.0,63658.0,0.157089]
[1721329937702,0.001594,63660.0,63654.0,0.314198]
[1721329937933,0.00361689,63659.0,63654.0,0.314198]
[1721329938142,0.00361689,63659.0,63658.0,0.001]
[1721329938366,0.157079,63662.0,63658.0,0.158087]
[1721329938593,0.16228867,63661.0,63658.0,0.001]
[1721329938806,0.16228867,63661.0,63656.0,0.157092]
[1721329939269,0.00520567,63661.0,63658.0,0.157087]
[1721329939493,0.00520567,63661.0,63656.0,0.157093]
[1721329939708,0.001594,63659.0,63656.0,0.157093]
[1721329940164,0.001594,63659.0,63654.0,0.001]
[1721329940437,0.157092,63657.0,63654.0,0.002]
[1721329940697,0.157092,63657.0,63654.0,0.001]
[1721329940935,0.00360523,63656.0,63653.0,0.157101]
[1721329941186,0.785532,63651.0,63650.0,0.000913]
[1721329941421,0.471319,63651.0,63650.0,0.000913]
[1721329941694,0.374293,63655.0,63654.0,0.001]
[1721329941960,0.157105,63652.0,63650.0,0.000913]
[1721329942228,0.157106,63651.0,63650.0,0.000913]
[1721329942531,0.785532,63651.0,63650.0,0.000913]
[1721329943758,0.785532,63651.0,63650.0,0.003913]
[1721329943959,0.785532,63651.0,63650.0,0.000913]
[1721329944103,0.791532,63651.0,63650.0,0.001913]
[1721329944519,0.796532,63651.0,63650.0,0.001913]
[1721329946068,0.482319,63651.0,63650.0,0.001913]
[1721329947330,0.796532,63651.0,63650.0,0.001913]
[1721329949109,0.011,63651.0,63650.0,0.159022]
[1721329949317,0.011,63651.0,63650.0,0.001913]
[1721329949736,0.011,63651.0,63650.0,0.159022]
[1721329950567,0.01456849,63651.0,63650.0,0.159022]
[1721329950911,0.01456849,63651.0,63650.0,0.47324]
[1721329951626,0.01456849,63651.0,63650.0,0.001913]
[1721329951839,0.482319,63651.0,63650.0,0.001913]
[1721329952051,0.56240621,63651.0,63650.0,0.001913]
[1721329953510,1.57054936,63651.0,63650.0,0.001913]
[1721329953727,0.61073,63636.0,63635.0,0.0012]
[1721329953938,0.61073,63636.0,63634.0,0.000913]
[1721329953939,0.157146,63635.0,63634.0,0.000913]
[1721329954176,0.471438,63635.0,63634.0,0.000913]
[1721329954418,0.47497474,63635.0,63634.0,0.000913]
[1721329955289,0.78926674,63635.0,63634.0,0.000913]
[1721329955547,1.45940004,63635.0,63634.0,0.000913]
[1721329955985,0.785877,63623.0,63622.0,0.0012]
[1721329956197,0.31437,63620.0,63617.0,0.0012]
[1721329956410,0.31437,63620.0,63616.0,0.157193]
[1721329956411,0.157183,63620.0,63616.0,0.157193]
[1721329956619,0.00352602,63619.0,63616.0,0.157193]
[1721329957470,0.16071402,63619.0,63614.0,0.157196]
[1721329957731,0.16071402,63619.0,63606.0,0.0601]
[1721329957732,0.314377,63618.0,63606.0,0.0601]
[1721329957939,0.157203,63612.0,63608.0,0.158412]
[1721329958149,0.157209,63610.0,63605.0,0.000913]
[1721329958363,0.00349497,63611.0,63605.0,0.002113]
[1721329958569,0.22825022,63618.0,63605.0,0.002113]
[1721329958570,0.471598,63614.0,63606.0,0.314432]
[1721329958780,0.15438174,63618.0,63611.0,0.157204]
[1721329958781,0.00350252,63613.0,63611.0,0.157204]
[1721329959027,0.157195,63615.0,63611.0,0.157204]
[1721329959243,0.003503,63612.0,63610.0,0.157207]
[1721329959460,0.157201,63613.0,63609.0,0.15721]
[1721329959684,0.003512,63611.0,63609.0,0.15721]
[1721329959888,0.157201,63613.0,63609.0,0.15721]
[1721329960093,0.00352693,63610.0,63609.0,0.15721]
[1721329960324,0.157203,63612.0,63608.0,0.157212]
[1721329960535,0.16270487,63612.0,63608.0,0.157212]
[1721329960742,0.00349546,63610.0,63608.0,0.157212]
[1721329960957,0.159204,63612.0,63608.0,0.157212]
[1721329961128,0.001,63611.0,63608.0,0.157212]
[1721329961372,0.00349546,63610.0,63608.0,0.157212]
[1721329961594,0.00349546,63610.0,63609.0,0.15721]
[1721329962019,0.00349546,63610.0,63608.0,0.157212]
[1721329962430,0.00349546,63610.0,63605.0,0.315352]
[1721329962431,0.00349546,63610.0,63607.0,0.166377]
[1721329962635,0.157212,63608.0,63607.0,0.009163]
[1721329962846,0.786062,63608.0,63607.0,0.009163]
[1721329963050,0.7895366,63608.0,63607.0,0.009163]
[1721329963461,0.8671366,63608.0,63607.0,0.009163]
[1721329963703,0.4751116,63608.0,63607.0,0.009163]
[1721329963882,0.7895366,63608.0,63607.0,0.009163]
[1721329964091,0.4751116,63608.0,63607.0,0.009163]
[1721329964295,0.7895366,63608.0,63607.0,0.009163]
[1721329964748,0.4751116,63608.0,63607.0,0.009163]
[1721329964997,0.4751116,63608.0,63607.0,0.011163]
[1721329965255,0.0074746,63608.0,63607.0,0.168378]
[1721329965617,0.0074746,63608.0,63607.0,0.480808]
[1721329965889,0.0104746,63608.0,63607.0,0.166378]
[1721329966147,0.007,63608.0,63607.0,0.166378]
[1721329966384,0.01048227,63608.0,63607.0,0.009163]
[1721329966639,0.00648227,63608.0,63607.0,0.166378]
[1721329966883,0.16369427,63608.0,63607.0,0.009163]
[1721329967624,0.00348227,63608.0,63607.0,0.166378]
[1721329968096,0.314413,63611.0,63607.0,0.013163]
[1721329968335,0.314402,63613.0,63607.0,0.013163]
[1721329968578,0.00349178,63610.0,63607.0,0.009163]
[1721329968843,0.001,63608.0,63607.0,0.796238]
[1721329969104,0.00061917,63608.0,63607.0,0.481808]
[1721329969351,0.00061917,63608.0,63607.0,0.857938]
[1721329969603,0.00410273,63608.0,63607.0,1.172368]
[1721329969846,0.00061917,63608.0,63607.0,0.009163]
[1721329970094,0.004,63613.0,63610.0,0.157207]
[1721329970327,0.00317008,63608.0,63607.0,0.009163]
[1721329970564,0.157212,63608.0,63607.0,0.009163]
[1721329970831,0.81989234,63608.0,63607.0,0.009163]
[1721329971086,0.50546734,63608.0,63607.0,0.009163]
[1721329971595,0.00318914,63608.0,63607.0,0.877438]
[1721329971850,0.157198,63614.0,63608.0,0.314425]
[1721329972386,0.00317913,63613.0,63610.0,0.157207]
[1721329972609,0.157198,63614.0,63610.0,0.157207]
[1721329972830,0.00317763,63612.0,63610.0,0.157207]
[1721329973094,0.157196,63615.0,63609.0,0.314419]
[1721329973324,0.003,63614.0,63611.0,0.157205]
[1721329973464,0.00617757,63614.0,63611.0,0.157205]
[1721329974153,0.00617757,63614.0,63607.0,0.166377]
[1721329974347,0.157207,63611.0,63607.0,0.009163]
[1721329974553,0.00318287,63610.0,63607.0,0.166377]
[1721329974766,0.00318287,63610.0,63608.0,0.157211]
[1721329974962,0.157203,63612.0,63608.0,0.157211]
[1721329975201,0.00318138,63609.0,63608.0,0.157211]
[1721329975422,0.157203,63612.0,63608.0,0.157211]
[1721329975618,0.314403,63613.0,63607.0,0.009163]
[1721329975619,0.00318138,63609.0,63607.0,0.009163]
[1721329975834,0.157208,63610.0,63607.0,0.011163]
[1721329976026,0.00317881,63608.0,63607.0,0.011163]
[1721329976393,0.157208,63610.0,63607.0,0.011163]
[1721329976603,0.00317881,63608.0,63607.0,0.011163]
[1721329976828,0.471637,63608.0,63607.0,0.011163]
[1721329977048,0.47482329,63608.0,63607.0,0.009163]
[1721329978227,1.25905503,63608.0,63607.0,0.009163]
[1721329978229,1.48845503,63608.0,63607.0,0.009163]
[1721329978465,1.5928046,63608.0,63607.0,0.009163]
[1721329978692,1.5938046,63608.0,63607.0,0.009163]
[1721329978934,1.5928046,63608.0,63607.0,0.009163]
[1721329979167,1.12803003,63608.0,63607.0,0.009163]
[1721329979392,1.13103003,63608.0,63607.0,0.009163]
[1721329979860,0.16439829,63608.0,63607.0,0.009163]
[1721329980103,0.01618629,63608.0,63607.0,0.010163]
[1721329981108,0.68698536,63608.0,63607.0,0.010163]
[1721329981337,0.64220503,63608.0,63607.0,0.009163]
[1721329981570,0.62920503,63608.0,63607.0,0.009163]
[1721329981810,0.16339829,63608.0,63607.0,0.009163]
[1721329982062,0.48182329,63608.0,63607.0,0.009163]
[1721329982290,0.47482329,63608.0,63607.0,0.009163]
[1721329982537,0.47982329,63608.0,63607.0,0.010163]
[1721329982758,0.48682329,63608.0,63607.0,0.010163]
[1721329982993,0.56124682,63608.0,63607.0,0.009163]
[1721329983246,0.48182329,63608.0,63607.0,0.009163]
[1721329983481,0.48482329,63608.0,63607.0,0.009163]
[1721329983962,1.26805503,63608.0,63607.0,0.009163]
[1721329984425,1.27205503,63608.0,63607.0,0.009163]
[1721329984636,1.58156053,63608.0,63607.0,0.009163]
[1721329984882,1.81856053,63608.0,63607.0,0.009163]
[1721329985139,1.86065977,63608.0,63607.0,0.009163]
[1721329985375,2.22508477,63608.0,63607.0,0.009163]
[1721329985658,2.72810977,63608.0,63607.0,0.009163]
[1721329985882,2.75272017,63608.0,63607.0,0.009163]
[1721329986109,2.81991854,63608.0,63607.0,0.009163]
[1721329986356,2.73872017,63608.0,63607.0,0.009163]
[1721329986612,2.73872017,63608.0,63607.0,0.010163]
[1721329986613,2.74472017,63608.0,63607.0,0.010163]
[1721329987079,2.50295277,63608.0,63607.0,0.009163]
[1721329987303,2.50295277,63608.0,63607.0,0.010163]
[1721329987304,2.42429517,63608.0,63607.0,0.010163]
[1721329987550,2.09548967,63608.0,63607.0,0.010163]
[1721329988461,1.75845936,63608.0,63607.0,0.010163]
[1721329988463,1.76645936,63608.0,63607.0,0.010163]
[1721329988698,2.07288436,63608.0,63607.0,0.010163]
[1721329988928,2.28848436,63608.0,63607.0,0.010163]
[1721329989153,1.142687,63606.0,63605.0,0.000913]
[1721329989422,1.24857307,63606.0,63605.0,0.000913]
[1721329989675,1.63919129,63606.0,63605.0,0.000913]
[1721329989899,1.95362629,63606.0,63605.0,0.000913]
[1721329990127,2.10797586,63606.0,63605.0,0.000913]
[1721329990373,2.12197586,63606.0,63605.0,0.000913]
[1721329991386,2.07948193,63606.0,63605.0,0.000913]
[1721329991640,2.07228483,63606.0,63605.0,0.000913]
[1721329991898,2.13628483,63606.0,63605.0,0.000913]
[1721329992187,1.465047,63602.0,63601.0,0.009163]
[1721329992411,1.465047,63602.0,63594.0,0.009163]
[1721329992412,0.05,63596.0,63594.0,0.009163]
[1721329992656,0.05,63596.0,63568.0,0.009163]
[1721329992657,0.314579,63577.0,63563.0,0.0655]
[1721329992916,1.22199994,63577.0,63559.0,0.0831]
[1721329993146,0.314584,63576.0,63560.0,0.52734871]
[1721329993382,0.157321,63565.0,63561.0,0.0012]
[1721329993633,0.1823,63571.0,63560.0,0.0643]
[1721329993634,0.157328,63562.0,63560.0,0.0643]
[1721329993865,0.157328,63562.0,63552.0,0.063018]
[1721329993866,0.15438174,63561.0,63555.0,0.0643]
[1721329994101,0.15438174,63561.0,63549.0,0.314713]
[1721329994102,0.1823,63558.0,63550.0,0.314712]
[1721329994338,0.15749638,63561.0,63552.0,0.157349]
[1721329994339,0.157339,63557.0,63552.0,0.157349]
[1721329994585,0.16043791,63557.0,63553.0,0.157348]
[1721329995052,0.157342,63556.0,63551.0,0.472059]
[1721329995283,0.157342,63556.0,63552.0,0.157351]
[1721329995533,0.314669,63559.0,63553.0,0.157348]
[1721329995534,0.00309622,63555.0,63553.0,0.157348]
[1721329995769,0.00309622,63555.0,63551.0,0.314707]
[1721329995770,0.03727671,63555.0,63552.0,0.157351]
[1721329996065,0.00308443,63554.0,63551.0,0.157352]
[1721329996784,0.00308443,63554.0,63549.0,0.0604]
[1721329996785,0.314698,63553.0,63549.0,0.0604]
[1721329997030,0.314703,63552.0,63546.0,0.0782]
[1721329997305,0.31778743,63552.0,63547.0,0.0012]
[1721329997513,0.16043643,63552.0,63548.0,0.15736]
[1721329997757,0.16043643,63552.0,63546.0,0.314731]
[1721329997758,0.06871228,63551.0,63546.0,0.314731]
[1721329997997,0.00308443,63552.0,63551.0,0.47206]
[1721329998230,0.00308443,63552.0,63547.0,0.0799]
[1721329998231,0.159341,63556.0,63549.0,0.314716]
[1721329998453,0.00308122,63552.0,63550.0,0.0012]
[1721329998663,0.157346,63554.0,63550.0,0.157355]
[1721329998882,0.157345,63555.0,63551.0,0.157353]
[1721329999009,0.264722,63555.0,63551.0,0.157353]
[1721329999236,0.158351,63552.0,63551.0,0.002]
[1721329999460,0.473053,63552.0,63551.0,0.002]
[1721329999658,0.473053,63552.0,63544.0,0.377239]
[1721329999659,0.158351,63552.0,63548.0,0.15736]
[1721329999865,0.158351,63552.0,63549.0,0.157358]
[1721329999866,0.001,63552.0,63549.0,0.157358]
[1721330000083,0.001,63552.0,63550.0,0.002]
[1721330000302,0.157353,63551.0,63550.0,0.002]
[1721330000531,0.157353,63551.0,63548.0,0.15736]
[1721330000752,0.0473049,63550.0,63548.0,0.002]
[1721330000965,0.2046619,63550.0,63548.0,0.002]
[1721330001170,0.314706,63552.0,63548.0,0.15936]
[1721330001171,0.157351,63552.0,63548.0,0.15936]
[1721330001407,0.157349,63553.0,63549.0,0.157357]
[1721330001822,0.36404376,63559.0,63550.0,0.314711]
[1721330002032,0.314683,63556.0,63550.0,0.314711]
[1721330002247,0.314683,63556.0,63551.0,0.158553]
[1721330002248,0.157345,63555.0,63551.0,0.158553]
[1721330002460,0.157345,63555.0,63548.0,0.002]
[1721330002461,0.15735,63553.0,63549.0,0.157358]
[1721330002677,0.09411007,63552.0,63549.0,0.157358]
[1721330003102,0.09411007,63552.0,63550.0,0.002]
[1721330003772,0.25146107,63552.0,63549.0,0.157358]
[1721330004009,0.25146107,63552.0,63549.0,0.159358]
[1721330004221,0.07205308,63551.0,63549.0,0.002]
[1721330004437,0.157356,63550.0,63549.0,0.002]
[1721330004653,1.25587374,63550.0,63549.0,0.002]
[1721330005091,1.43259628,63550.0,63549.0,0.002]
[1721330005315,0.78683,63546.0,63545.0,0.009174]
[1721330005532,1.25594374,63546.0,63545.0,0.009174]
[1721330005751,1.33444374,63546.0,63545.0,0.009174]
[1721330005992,1.43444374,63546.0,63545.0,0.009174]
[1721330006187,1.58879331,63546.0,63545.0,0.009174]
[1721330006831,1.58879331,63546.0,63545.0,0.00912151]
[1721330007473,1.61279331,63546.0,63545.0,0.00912151]
[1721330007681,0.75047974,63546.0,63545.0,0.00912151]
[1721330008106,1.06521174,63546.0,63545.0,0.00912151]
[1721330008307,1.12951174,63546.0,63545.0,0.00912151]
[1721330008521,1.44424374,63546.0,63545.0,0.00912151]
[1721330008927,1.43324374,63546.0,63545.0,0.00912151]
[1721330009141,1.21756131,63546.0,63545.0,0.00912151]
[1721330009564,1.53229331,63546.0,63545.0,0.00912151]
[1721330009776,1.20856131,63546.0,63545.0,0.00912151]
[1721330010001,1.53429331,63546.0,63545.0,0.00912151]
[1721330010185,1.21956131,63546.0,63545.0,0.00912151]
[1721330010607,1.22261411,63546.0,63545.0,0.00912151]
[1721330011044,0.59315011,63546.0,63545.0,0.00912151]
[1721330011321,0.0270528,63546.0,63545.0,0.48122651]
[1721330011560,0.0270528,63546.0,63545.0,1.41298225]
[1721330011561,0.024,63546.0,63545.0,1.41298225]
[1721330011779,0.001,63550.0,63549.0,0.786792]
[1721330012025,0.001,63550.0,63549.0,1.40379074]
[1721330012276,0.157313,63568.0,63564.0,0.15732]
[1721330012518,0.52658226,63569.0,63564.0,0.15732]
[1721330012519,0.00293565,63567.0,63566.0,0.471949]
[1721330012752,0.314596,63574.0,63566.0,0.237216]
[1721330012982,0.00293565,63567.0,63566.0,0.237216]
[1721330013210,0.04935258,63579.0,63566.0,0.0799]
[1721330013457,0.157288,63578.0,63566.0,0.0799]
[1721330013699,0.04935258,63579.0,63566.0,0.0799]
[1721330013700,0.04935258,63579.0,63574.0,0.157296]
[1721330013929,0.20663858,63579.0,63574.0,0.157296]
[1721330014397,0.157286,63579.0,63574.0,0.157296]
[1721330014639,0.15438174,63579.0,63566.0,0.0799]
[1721330014885,0.15438174,63579.0,63570.0,0.157306]
[1721330014886,0.157297,63574.0,63570.0,0.157306]
[1721330015117,0.157293,63576.0,63570.0,0.157305]
[1721330015361,0.31167674,63575.0,63574.0,0.001]
[1721330015606,0.37731788,63575.0,63570.0,0.157305]
[1721330016068,0.15438174,63575.0,63573.0,0.157298]
[1721330016288,0.007,63579.0,63578.0,0.157287]
[1721330016539,0.02,63579.0,63574.0,0.315589]
[1721330016747,0.02,63579.0,63577.0,0.157287]
[1721330016959,0.0477277,63579.0,63575.0,0.157293]
[1721330017171,0.157299,63574.0,63569.0,0.157307]
[1721330017380,0.314594,63574.0,63568.0,0.157311]
[1721330017590,0.0497277,63579.0,63566.0,0.001]
[1721330017591,0.157308,63570.0,63566.0,0.158316]
[1721330017795,0.15438174,63570.0,63568.0,0.157311]
[1721330018010,0.0427277,63579.0,63569.0,0.314618]
[1721330018011,0.157292,63576.0,63569.0,0.314618]
[1721330018219,0.157292,63576.0,63566.0,0.001]
[1721330018220,0.314596,63574.0,63566.0,0.001]
[1721330018444,0.314579,63577.0,63560.0,0.0628]
[1721330018681,0.157294,63575.0,63570.0,0.157304]
[1721330018975,0.002,63574.0,63573.0,0.157298]
[1721330019435,0.002,63574.0,63573.0,0.471896]
[1721330020132,0.003,63574.0,63573.0,0.471896]
[1721330020587,0.005,63574.0,63573.0,0.533996]
[1721330020815,0.005,63574.0,63573.0,0.848594]
[1721330020816,0.003,63574.0,63573.0,0.848594]
[1721330021042,0.005,63574.0,63573.0,0.848594]
[1721330022038,0.005,63574.0,63573.0,0.533996]
[1721330022039,0.00583,63574.0,63573.0,0.533996]
[1721330022278,0.00879301,63574.0,63573.0,0.533996]
[1721330022996,0.00583,63574.0,63573.0,0.533996]
[1721330023214,0.00879318,63574.0,63573.0,0.157298]
[1721330023936,0.00879318,63574.0,63573.0,0.471896]
[1721330024915,0.00879318,63574.0,63573.0,1.101092]
[1721330025175,0.00583,63574.0,63573.0,1.101092]
[1721330025634,0.00583,63574.0,63573.0,1.243692]
[1721330025882,0.00583,63574.0,63573.0,0.157298]
[1721330026389,0.00583,63574.0,63557.0,0.1]
[1721330026390,0.00462373,63574.0,63554.0,0.0012]
[1721330026777,0.00462373,63574.0,63567.0,0.314626]
[1721330026778,0.08528716,63573.0,63567.0,0.314626]
[1721330026945,0.00296931,63573.0,63567.0,0.157312]
[1721330027185,0.00296931,63573.0,63563.0,0.064]
[1721330027186,0.07717479,63571.0,63563.0,0.064]
[1721330027410,0.157319,63565.0,63564.0,0.0012]
[1721330027629,0.157319,63565.0,63560.0,0.157331]
[1721330027851,0.00295533,63565.0,63563.0,0.157323]
[1721330028083,0.157314,63568.0,63563.0,0.157323]
[1721330028305,0.00295383,63564.0,63563.0,0.157323]
[1721330028523,0.00295383,63564.0,63558.0,0.157335]
[1721330028524,0.157326,63563.0,63558.0,0.157335]
[1721330028749,0.00293736,63562.0,63559.0,0.0012]
[1721330028999,0.00293736,63562.0,63557.0,0.0012]
[1721330029000,0.15438174,63561.0,63557.0,0.0012]
[1721330029260,0.47198833,63561.0,63555.0,0.157343]
[1721330029522,0.47198833,63561.0,63556.0,0.0012]
[1721330029523,0.157335,63559.0,63556.0,0.0012]
[1721330030016,0.00293911,63558.0,63555.0,0.157343]
[1721330030282,0.00293911,63558.0,63557.0,0.008]
[1721330031027,0.88632664,63558.0,63557.0,0.008]
[1721330031250,1.51567264,63558.0,63557.0,0.008]
[1721330031482,1.20099964,63558.0,63557.0,0.008]
[1721330031709,0.314703,63552.0,63546.0,0.157365]